[Event "Titled Tuesday Blitz March 07 Late 2023"]
[White "Gerbelli Neto, Eduardo"]
[Black "Harsh Suresh"]
[WhiteFideId "2103281"]
[BlackFideId "45018464"]
[WhiteElo "2178"]
[BlackElo "2227"]
[Result "1-0"]
[Round "03"]
[TimeControl "180+2"]
[Date "2023.03.07"]
[WhiteClock "0:00:28"]
[BlackClock "0:00:19"]

1. e4 {[%clk 0:03:00]}  c5 {[%clk 0:02:59]} 2. Nc3 {[%clk 0:03:00]}  Nc6 {[%clk 0:02:58]} 3. f4 {[%clk 0:03:01]}  g6 {[%clk 0:02:52]} 4. Nf3 {[%clk 0:03:01]}  Bg7 {[%clk 0:02:52]} 5. Bc4 {[%clk 0:03:02]}  d6 {[%clk 0:02:52]} 6. O-O {[%clk 0:03:01]}  e6 {[%clk 0:02:53]} 7. d3 {[%clk 0:03:01]}  Nge7 {[%clk 0:02:53]} 8. Qe1 {[%clk 0:03:00]}  O-O {[%clk 0:02:52]} 9. Bb3 {[%clk 0:03:00]}  Nd4 {[%clk 0:02:20]} 10. Nxd4 {[%clk 0:02:58]}  cxd4 {[%clk 0:02:20]} 11. Ne2 {[%clk 0:02:58]}  f5 {[%clk 0:02:19]} 12. Ng3 {[%clk 0:02:54]}  Kh8 {[%clk 0:02:17]} 13. Bd2 {[%clk 0:02:45]}  a5 {[%clk 0:02:16]} 14. a4 {[%clk 0:02:40]}  Nc6 {[%clk 0:02:12]} 15. Bc4 {[%clk 0:02:05]}  Bd7 {[%clk 0:02:12]} 16. Bb5 {[%clk 0:02:05]}  b6 {[%clk 0:02:01]} 17. c3 {[%clk 0:02:03]}  Rc8 {[%clk 0:01:57]} 18. Ne2 {[%clk 0:01:59]}  e5 {[%clk 0:01:43]} 19. exf5 {[%clk 0:01:19]}  Bxf5 {[%clk 0:01:31]} 20. cxd4 {[%clk 0:01:09]}  Nxd4 {[%clk 0:01:27]} 21. Nxd4 {[%clk 0:01:09]}  exd4 {[%clk 0:01:28]} 22. Rc1 {[%clk 0:01:01]}  Rc5 {[%clk 0:01:13]} 23. b4 {[%clk 0:00:54]}  axb4 {[%clk 0:00:45]} 24. Bxb4 {[%clk 0:00:53]}  Rxb5 {[%clk 0:00:45]} 25. axb5 {[%clk 0:00:53]}  Bxd3 {[%clk 0:00:45]} 26. Qe6 {[%clk 0:00:40]}  Bxf1 {[%clk 0:00:42]} 27. Rxf1 {[%clk 0:00:41]}  Qf6 {[%clk 0:00:34]} 28. Qd5 {[%clk 0:00:35]}  Re8 {[%clk 0:00:30]} 29. Qxd6 {[%clk 0:00:30]}  Qxd6 {[%clk 0:00:30]} 30. Bxd6 {[%clk 0:00:31]}  Rd8 {[%clk 0:00:21]} 31. Bc7 {[%clk 0:00:29]}  Rd7 {[%clk 0:00:19]} 32. Bxb6 {[%clk 0:00:29]}  Rb7 {[%clk 0:00:19]} 33. Rc1 {[%clk 0:00:24]}  Kg8 {[%clk 0:00:15]} 34. Rc8+ {[%clk 0:00:22]}  Bf8 {[%clk 0:00:15]} 35. Bc5 {[%clk 0:00:21]}  Rxb5 {[%clk 0:00:14]} 36. Rxf8+ {[%clk 0:00:21]}  Kg7 {[%clk 0:00:15]} 37. Rc8 {[%clk 0:00:19]}  d3 {[%clk 0:00:15]} 38. Be3 {[%clk 0:00:18]}  Rb2 {[%clk 0:00:14]} 39. Rd8 {[%clk 0:00:17]}  Rb1+ {[%clk 0:00:13]} 40. Kf2 {[%clk 0:00:17]}  Rb3 {[%clk 0:00:14]} 41. Kf3 {[%clk 0:00:17]}  h5 {[%clk 0:00:14]} 42. Ke4 {[%clk 0:00:17]}  Kf7 {[%clk 0:00:14]} 43. Rxd3 {[%clk 0:00:16]}  Rb2 {[%clk 0:00:15]} 44. Kf3 {[%clk 0:00:16]}  Kf6 {[%clk 0:00:14]} 45. Bd4+ {[%clk 0:00:16]}  Kf5 {[%clk 0:00:09]} 46. Bxb2 {[%clk 0:00:17]}  g5 {[%clk 0:00:09]} 47. Rd5+ {[%clk 0:00:16]}  Ke6 {[%clk 0:00:10]} 48. Rxg5 {[%clk 0:00:17]}  h4 {[%clk 0:00:11]} 49. Rh5 {[%clk 0:00:17]}  h3 {[%clk 0:00:11]} 50. Rxh3 {[%clk 0:00:18]}  Kd5 {[%clk 0:00:12]} 51. Rh5+ {[%clk 0:00:19]}  Kc4 {[%clk 0:00:13]} 52. g4 {[%clk 0:00:19]}  Kd3 {[%clk 0:00:14]} 53. Re5 {[%clk 0:00:20]}  Kc2 {[%clk 0:00:15]} 54. h4 {[%clk 0:00:21]}  Kb3 {[%clk 0:00:15]} 55. h5 {[%clk 0:00:22]}  Kxb2 {[%clk 0:00:16]} 56. g5 {[%clk 0:00:23]}  Kc3 {[%clk 0:00:17]} 57. h6 {[%clk 0:00:23]}  Kd3 {[%clk 0:00:18]} 58. g6 {[%clk 0:00:24]}  Kd4 {[%clk 0:00:19]} 59. h7 {[%clk 0:00:25]}  Kc4 {[%clk 0:00:20]} 60. g7 {[%clk 0:00:26]}  Kd4 {[%clk 0:00:21]} 61. h8=Q {[%clk 0:00:27]}  Kd3 {[%clk 0:00:22]} 62. g8=Q {[%clk 0:00:28]}  Kc3 {[%clk 0:00:23]} 63. Qd5 {[%clk 0:00:27]}  Kc2 {[%clk 0:00:22]} 64. Qc8+ {[%clk 0:00:27]}  Kb2 {[%clk 0:00:19]} 65. Qdb7+ {[%clk 0:00:28]} 1-0


[Site "https://www.chess.com"]

[Event "Titled Tuesday Blitz March 07 Late 2023"]
[White "Naroditsky, Daniel"]
[Black "Molenda, Marcin"]
[WhiteFideId "2026961"]
[BlackFideId "1173065"]
[WhiteElo "2633"]
[BlackElo "2286"]
[Result "1-0"]
[Round "03"]
[TimeControl "180+2"]
[Date "2023.03.07"]
[WhiteClock "0:01:12"]
[BlackClock "0:00:01"]

1. e4 {[%clk 0:03:00]}  c5 {[%clk 0:02:48]} 2. c3 {[%clk 0:03:01]}  d5 {[%clk 0:02:41]} 3. exd5 {[%clk 0:03:02]}  Qxd5 {[%clk 0:02:42]} 4. d4 {[%clk 0:03:02]}  Nc6 {[%clk 0:02:42]} 5. Nf3 {[%clk 0:03:03]}  Bf5 {[%clk 0:02:43]} 6. Be3 {[%clk 0:03:02]}  cxd4 {[%clk 0:02:43]} 7. cxd4 {[%clk 0:03:03]}  Bxb1 {[%clk 0:02:41]} 8. Rxb1 {[%clk 0:02:59]}  Nf6 {[%clk 0:02:40]} 9. Qa4 {[%clk 0:02:56]}  a6 {[%clk 0:02:38]} 10. Bc4 {[%clk 0:02:46]}  Qf5 {[%clk 0:02:29]} 11. Rc1 {[%clk 0:02:34]}  e6 {[%clk 0:02:11]} 12. Ne5 {[%clk 0:02:25]}  Bb4+ {[%clk 0:01:24]} 13. Ke2 {[%clk 0:02:24]}  Bd6 {[%clk 0:01:05]} 14. Nxc6 {[%clk 0:02:21]}  bxc6 {[%clk 0:01:06]} 15. Qxc6+ {[%clk 0:02:17]}  Ke7 {[%clk 0:01:07]} 16. Qb7+ {[%clk 0:02:04]}  Nd7 {[%clk 0:01:06]} 17. Bd3 {[%clk 0:02:04]}  Qh5+ {[%clk 0:00:56]} 18. Qf3 {[%clk 0:02:04]}  Qa5 {[%clk 0:00:53]} 19. a3 {[%clk 0:02:00]}  Rab8 {[%clk 0:00:53]} 20. Rc2 {[%clk 0:01:52]}  Rb3 {[%clk 0:00:44]} 21. Bc4 {[%clk 0:01:45]}  Rb6 {[%clk 0:00:23]} 22. b4 {[%clk 0:01:42]}  Qa4 {[%clk 0:00:20]} 23. Rhc1 {[%clk 0:01:42]}  Rhb8 {[%clk 0:00:16]} 24. Qe4 {[%clk 0:01:36]}  Qxa3 {[%clk 0:00:08]} 25. d5 {[%clk 0:01:32]}  Rxb4 {[%clk 0:00:08]} 26. dxe6 {[%clk 0:01:32]}  Nf6 {[%clk 0:00:06]} 27. Bg5 {[%clk 0:01:32]}  Kf8 {[%clk 0:00:04]} 28. Qc6 {[%clk 0:01:32]}  R4b6 {[%clk 0:00:02]} 29. Qf3 {[%clk 0:01:25]}  Be7 {[%clk 0:00:02]} 30. exf7 {[%clk 0:01:18]}  Rb2 {[%clk 0:00:02]} 31. Qxa3 {[%clk 0:01:13]}  Bxa3 {[%clk 0:00:01]} 32. Bf4 {[%clk 0:01:11]}  Rc8 {[%clk 0:00:01]} 33. Rxb2 {[%clk 0:01:11]}  Bxb2 {[%clk 0:00:01]} 34. Bd6# {[%clk 0:01:12]} 1-0


[Site "https://www.chess.com"]

[Event "Titled Tuesday Blitz March 07 Late 2023"]
[White "Sokolin, Leonid"]
[Black "Caruana, Fabiano"]
[WhiteFideId "2009161"]
[BlackFideId "2020009"]
[WhiteElo "2394"]
[BlackElo "2818"]
[Result "0-1"]
[Round "03"]
[TimeControl "180+2"]
[Date "2023.03.07"]
[WhiteClock "0:00:01"]
[BlackClock "0:00:04"]

1. e4 {[%clk 0:03:00]}  e5 {[%clk 0:02:56]} 2. Nf3 {[%clk 0:03:00]}  Nc6 {[%clk 0:02:54]} 3. Nc3 {[%clk 0:03:00]}  Nf6 {[%clk 0:02:49]} 4. Bb5 {[%clk 0:03:00]}  Bd6 {[%clk 0:02:47]} 5. d3 {[%clk 0:02:55]}  O-O {[%clk 0:02:47]} 6. a3 {[%clk 0:02:41]}  h6 {[%clk 0:02:45]} 7. g4 {[%clk 0:02:39]}  Nd4 {[%clk 0:02:35]} 8. g5 {[%clk 0:02:39]}  hxg5 {[%clk 0:02:31]} 9. Bxg5 {[%clk 0:02:38]}  Nxb5 {[%clk 0:02:30]} 10. Nxb5 {[%clk 0:02:37]}  Be7 {[%clk 0:02:31]} 11. Nxe5 {[%clk 0:02:34]}  d5 {[%clk 0:02:28]} 12. Rg1 {[%clk 0:02:20]}  c6 {[%clk 0:01:32]} 13. Bh6 {[%clk 0:02:05]}  g6 {[%clk 0:01:30]} 14. Nc3 {[%clk 0:01:29]}  d4 {[%clk 0:01:28]} 15. Bxf8 {[%clk 0:01:25]}  Bxf8 {[%clk 0:01:26]} 16. Nxg6 {[%clk 0:01:15]}  fxg6 {[%clk 0:01:26]} 17. Ne2 {[%clk 0:01:14]}  Bg4 {[%clk 0:01:16]} 18. Qd2 {[%clk 0:01:11]}  Kh7 {[%clk 0:01:05]} 19. h3 {[%clk 0:01:05]}  Bh6 {[%clk 0:01:04]} 20. f4 {[%clk 0:00:56]}  Bxe2 {[%clk 0:01:04]} 21. Kxe2 {[%clk 0:00:54]}  Nh5 {[%clk 0:01:04]} 22. Raf1 {[%clk 0:00:52]}  Qh4 {[%clk 0:01:03]} 23. Rf3 {[%clk 0:00:40]}  Nxf4+ {[%clk 0:00:41]} 24. Kf1 {[%clk 0:00:39]}  Rf8 {[%clk 0:00:37]} 25. Rg4 {[%clk 0:00:39]}  Qf6 {[%clk 0:00:28]} 26. Qf2 {[%clk 0:00:30]}  Kg7 {[%clk 0:00:23]} 27. Qh4 {[%clk 0:00:19]}  Qxh4 {[%clk 0:00:16]} 28. Rxh4 {[%clk 0:00:19]}  c5 {[%clk 0:00:11]} 29. Kf2 {[%clk 0:00:18]}  b5 {[%clk 0:00:11]} 30. Kg3 {[%clk 0:00:18]}  Ne2+ {[%clk 0:00:09]} 31. Kf2 {[%clk 0:00:18]}  Nf4 {[%clk 0:00:09]} 32. Kg3 {[%clk 0:00:17]}  Nh5+ {[%clk 0:00:10]} 33. Kf2 {[%clk 0:00:17]}  Be3+ {[%clk 0:00:10]} 34. Ke2 {[%clk 0:00:15]}  Nf4+ {[%clk 0:00:10]} 35. Kf1 {[%clk 0:00:14]}  a5 {[%clk 0:00:07]} 36. b3 {[%clk 0:00:13]}  a4 {[%clk 0:00:07]} 37. bxa4 {[%clk 0:00:12]}  bxa4 {[%clk 0:00:07]} 38. Rg4 {[%clk 0:00:12]}  Bc1 {[%clk 0:00:07]} 39. h4 {[%clk 0:00:11]}  Ne6 {[%clk 0:00:06]} 40. Rxf8 {[%clk 0:00:10]}  Nxf8 {[%clk 0:00:07]} 41. Rg5 {[%clk 0:00:10]}  Bxa3 {[%clk 0:00:07]} 42. Rd5 {[%clk 0:00:09]}  Bb4 {[%clk 0:00:07]} 43. Rd6 {[%clk 0:00:09]}  a3 {[%clk 0:00:07]} 44. Ra6 {[%clk 0:00:09]}  Nd7 {[%clk 0:00:07]} 45. Ra7 {[%clk 0:00:08]}  Kh6 {[%clk 0:00:06]} 46. Rxd7 {[%clk 0:00:08]}  Kh5 {[%clk 0:00:07]} 47. Ra7 {[%clk 0:00:07]}  Kxh4 {[%clk 0:00:07]} 48. Kf2 {[%clk 0:00:07]}  Kg4 {[%clk 0:00:07]} 49. Kg2 {[%clk 0:00:07]}  g5 {[%clk 0:00:07]} 50. Ra6 {[%clk 0:00:06]}  Kf4 {[%clk 0:00:07]} 51. Kf2 {[%clk 0:00:05]}  g4 {[%clk 0:00:07]} 52. Rf6+ {[%clk 0:00:05]}  Kg5 {[%clk 0:00:08]} 53. Ra6 {[%clk 0:00:05]}  c4 {[%clk 0:00:07]} 54. dxc4 {[%clk 0:00:04]}  Kf4 {[%clk 0:00:08]} 55. Re6 {[%clk 0:00:02]}  Bc5 {[%clk 0:00:05]} 56. Ke2 {[%clk 0:00:01]}  g3 {[%clk 0:00:04]} 0-1


[Site "https://www.chess.com"]

[Event "Titled Tuesday Blitz March 07 Late 2023"]
[White "Fressinet, Laurent"]
[Black "Dragomirescu, Angela"]
[WhiteFideId "608742"]
[BlackFideId "1209914"]
[WhiteElo "2633"]
[BlackElo "2171"]
[Result "0-1"]
[Round "03"]
[TimeControl "180+2"]
[Date "2023.03.07"]
[WhiteClock "0:00:01"]
[BlackClock "0:00:13"]

1. e4 {[%clk 0:03:00]}  e5 {[%clk 0:02:59]} 2. Nf3 {[%clk 0:02:56]}  Nc6 {[%clk 0:02:59]} 3. Bb5 {[%clk 0:02:57]}  a6 {[%clk 0:02:59]} 4. Ba4 {[%clk 0:02:57]}  Bc5 {[%clk 0:03:00]} 5. O-O {[%clk 0:02:56]}  Nge7 {[%clk 0:03:00]} 6. c3 {[%clk 0:02:55]}  Ba7 {[%clk 0:02:59]} 7. d4 {[%clk 0:02:52]}  Ng6 {[%clk 0:02:59]} 8. d5 {[%clk 0:02:51]}  Nce7 {[%clk 0:02:59]} 9. d6 {[%clk 0:02:50]}  cxd6 {[%clk 0:03:00]} 10. Qxd6 {[%clk 0:02:47]}  O-O {[%clk 0:02:57]} 11. Bc2 {[%clk 0:02:42]}  Bb8 {[%clk 0:02:53]} 12. Qd1 {[%clk 0:02:40]}  d5 {[%clk 0:02:51]} 13. exd5 {[%clk 0:02:40]}  Qxd5 {[%clk 0:02:52]} 14. Nbd2 {[%clk 0:02:34]}  Bf5 {[%clk 0:02:45]} 15. Bxf5 {[%clk 0:02:28]}  Nxf5 {[%clk 0:02:42]} 16. Nb3 {[%clk 0:02:29]}  Rd8 {[%clk 0:02:24]} 17. Bg5 {[%clk 0:02:18]}  f6 {[%clk 0:02:17]} 18. Qc2 {[%clk 0:02:16]}  Qe6 {[%clk 0:02:18]} 19. Nc5 {[%clk 0:02:14]}  Qc8 {[%clk 0:02:06]} 20. Bc1 {[%clk 0:02:10]}  Ba7 {[%clk 0:01:54]} 21. Ne4 {[%clk 0:02:05]}  Kh8 {[%clk 0:01:40]} 22. Qe2 {[%clk 0:02:02]}  Qe6 {[%clk 0:01:32]} 23. a4 {[%clk 0:01:57]}  Rac8 {[%clk 0:01:32]} 24. a5 {[%clk 0:01:54]}  Qc4 {[%clk 0:01:18]} 25. Qxc4 {[%clk 0:01:47]}  Rxc4 {[%clk 0:01:18]} 26. Nfd2 {[%clk 0:01:46]}  Rc7 {[%clk 0:01:19]} 27. g3 {[%clk 0:01:46]}  Rcd7 {[%clk 0:01:19]} 28. Nc4 {[%clk 0:01:43]}  Rc7 {[%clk 0:01:14]} 29. Ra4 {[%clk 0:01:38]}  Kg8 {[%clk 0:01:11]} 30. Nb6 {[%clk 0:01:27]}  Bxb6 {[%clk 0:01:03]} 31. axb6 {[%clk 0:01:28]}  Rc6 {[%clk 0:01:04]} 32. Rb4 {[%clk 0:01:27]}  h5 {[%clk 0:00:57]} 33. h3 {[%clk 0:01:24]}  Nf8 {[%clk 0:00:51]} 34. g4 {[%clk 0:01:19]}  hxg4 {[%clk 0:00:50]} 35. hxg4 {[%clk 0:01:20]}  Ne7 {[%clk 0:00:50]} 36. Rb3 {[%clk 0:01:01]}  Ne6 {[%clk 0:00:34]} 37. Be3 {[%clk 0:00:58]}  Nd5 {[%clk 0:00:34]} 38. Rd1 {[%clk 0:00:55]}  Nxe3 {[%clk 0:00:32]} 39. Rxd8+ {[%clk 0:00:55]}  Nxd8 {[%clk 0:00:33]} 40. fxe3 {[%clk 0:00:54]}  Ne6 {[%clk 0:00:29]} 41. Rb4 {[%clk 0:00:51]}  Kf8 {[%clk 0:00:26]} 42. Kf2 {[%clk 0:00:50]}  Nc5 {[%clk 0:00:20]} 43. Kf3 {[%clk 0:00:47]}  Nd3 {[%clk 0:00:20]} 44. Rb3 {[%clk 0:00:45]}  Ke7 {[%clk 0:00:21]} 45. c4 {[%clk 0:00:32]}  Ne1+ {[%clk 0:00:21]} 46. Ke2 {[%clk 0:00:33]}  Rxc4 {[%clk 0:00:22]} 47. Nc3 {[%clk 0:00:22]}  Ng2 {[%clk 0:00:21]} 48. Nd5+ {[%clk 0:00:19]}  Kd7 {[%clk 0:00:19]} 49. Rd3 {[%clk 0:00:19]}  Kc6 {[%clk 0:00:18]} 50. Ne7+ {[%clk 0:00:11]}  Kxb6 {[%clk 0:00:18]} 51. Rd6+ {[%clk 0:00:11]}  Ka7 {[%clk 0:00:18]} 52. Rd7 {[%clk 0:00:08]}  Rxg4 {[%clk 0:00:18]} 53. Nf5 {[%clk 0:00:08]}  Nh4 {[%clk 0:00:16]} 54. Nd6 {[%clk 0:00:08]}  Rg2+ {[%clk 0:00:15]} 55. Kd3 {[%clk 0:00:08]}  Rxb2 {[%clk 0:00:16]} 56. Rxg7 {[%clk 0:00:07]}  Ng2 {[%clk 0:00:15]} 57. Rg8 {[%clk 0:00:05]}  a5 {[%clk 0:00:14]} 58. Kc4 {[%clk 0:00:04]}  a4 {[%clk 0:00:14]} 59. Nb5+ {[%clk 0:00:03]}  Kb6 {[%clk 0:00:15]} 60. Nc3 {[%clk 0:00:04]}  a3 {[%clk 0:00:15]} 61. Ra8 {[%clk 0:00:03]}  Nxe3+ {[%clk 0:00:15]} 62. Kd3 {[%clk 0:00:03]}  Nf5 {[%clk 0:00:13]} 63. Rxa3 {[%clk 0:00:03]}  Kc7 {[%clk 0:00:11]} 64. Nd5+ {[%clk 0:00:03]}  Kd6 {[%clk 0:00:11]} 65. Nxf6 {[%clk 0:00:03]}  Nd4 {[%clk 0:00:11]} 66. Ne4+ {[%clk 0:00:03]}  Ke6 {[%clk 0:00:12]} 67. Nc5+ {[%clk 0:00:03]}  Kd5 {[%clk 0:00:11]} 68. Ne4 {[%clk 0:00:02]}  Rb3+ {[%clk 0:00:12]} 69. Rxb3 {[%clk 0:00:02]}  Nxb3 {[%clk 0:00:13]} 70. Nc3+ {[%clk 0:00:03]}  Kd6 {[%clk 0:00:13]} 71. Ke4 {[%clk 0:00:02]}  Nc5+ {[%clk 0:00:13]} 72. Kf5 {[%clk 0:00:03]}  e4 {[%clk 0:00:13]} 73. Ne2 {[%clk 0:00:01]}  Kd5 {[%clk 0:00:13]} 74. Kf4 {[%clk 0:00:01]}  b5 {[%clk 0:00:12]} 75. Ke3 {[%clk 0:00:02]}  Kc4 {[%clk 0:00:13]} 76. Kd2 {[%clk 0:00:01]}  b4 {[%clk 0:00:13]} 0-1


[Site "https://www.chess.com"]

[Event "Titled Tuesday Blitz March 07 Late 2023"]
[White "Zirkelbach, Maj"]
[Black "Rasulov, Vugar"]
[WhiteFideId "14613395"]
[BlackFideId "13402390"]
[WhiteElo "2138"]
[BlackElo "2509"]
[Result "0-1"]
[Round "03"]
[TimeControl "180+2"]
[Date "2023.03.07"]
[WhiteClock "0:00:06"]
[BlackClock "0:02:15"]

1. d4 {[%clk 0:03:00]}  d5 {[%clk 0:03:00]} 2. c4 {[%clk 0:02:59]}  e6 {[%clk 0:03:00]} 3. Nf3 {[%clk 0:02:59]}  a6 {[%clk 0:03:00]} 4. cxd5 {[%clk 0:02:56]}  exd5 {[%clk 0:03:01]} 5. Nc3 {[%clk 0:02:57]}  c6 {[%clk 0:03:01]} 6. Qc2 {[%clk 0:02:41]}  Bd6 {[%clk 0:02:54]} 7. e4 {[%clk 0:02:33]}  dxe4 {[%clk 0:02:52]} 8. Qxe4+ {[%clk 0:02:32]}  Ne7 {[%clk 0:02:51]} 9. Bg5 {[%clk 0:02:21]}  h6 {[%clk 0:02:48]} 10. Bxe7 {[%clk 0:02:13]}  Qxe7 {[%clk 0:02:48]} 11. Bd3 {[%clk 0:01:53]}  Qxe4+ {[%clk 0:02:46]} 12. Bxe4 {[%clk 0:01:45]}  O-O {[%clk 0:02:44]} 13. O-O {[%clk 0:01:42]}  Nd7 {[%clk 0:02:45]} 14. d5 {[%clk 0:01:41]}  c5 {[%clk 0:02:39]} 15. a4 {[%clk 0:01:38]}  Nf6 {[%clk 0:02:38]} 16. Bc2 {[%clk 0:01:31]}  Bd7 {[%clk 0:02:34]} 17. Rfe1 {[%clk 0:01:29]}  b5 {[%clk 0:02:32]} 18. axb5 {[%clk 0:01:29]}  axb5 {[%clk 0:02:33]} 19. Rxa8 {[%clk 0:01:28]}  Rxa8 {[%clk 0:02:34]} 20. Nd2 {[%clk 0:00:43]}  Re8 {[%clk 0:02:29]} 21. Rxe8+ {[%clk 0:00:42]}  Nxe8 {[%clk 0:02:30]} 22. Nde4 {[%clk 0:00:39]}  Kf8 {[%clk 0:02:27]} 23. Nxd6 {[%clk 0:00:37]}  Nxd6 {[%clk 0:02:28]} 24. Ne4 {[%clk 0:00:36]}  Nxe4 {[%clk 0:02:28]} 25. Bxe4 {[%clk 0:00:37]}  Ke7 {[%clk 0:02:29]} 26. Kf1 {[%clk 0:00:37]}  Kd6 {[%clk 0:02:29]} 27. Ke2 {[%clk 0:00:38]}  f5 {[%clk 0:02:27]} 28. Bf3 {[%clk 0:00:37]}  b4 {[%clk 0:02:27]} 29. Ke3 {[%clk 0:00:37]}  g5 {[%clk 0:02:27]} 30. g3 {[%clk 0:00:36]}  Ba4 {[%clk 0:02:25]} 31. h4 {[%clk 0:00:26]}  Bb3 {[%clk 0:02:24]} 32. hxg5 {[%clk 0:00:27]}  hxg5 {[%clk 0:02:25]} 33. Bh5 {[%clk 0:00:27]}  Bxd5 {[%clk 0:02:25]} 34. Bg6 {[%clk 0:00:28]}  Be6 {[%clk 0:02:19]} 35. Kd3 {[%clk 0:00:25]}  Ke5 {[%clk 0:02:19]} 36. Be8 {[%clk 0:00:25]}  c4+ {[%clk 0:02:18]} 37. Ke3 {[%clk 0:00:25]}  f4+ {[%clk 0:02:19]} 38. gxf4+ {[%clk 0:00:25]}  gxf4+ {[%clk 0:02:20]} 39. Kd2 {[%clk 0:00:26]}  Kd4 {[%clk 0:02:20]} 40. Bc6 {[%clk 0:00:25]}  c3+ {[%clk 0:02:20]} 41. bxc3+ {[%clk 0:00:25]}  bxc3+ {[%clk 0:02:21]} 42. Kc1 {[%clk 0:00:26]}  Bf5 {[%clk 0:02:20]} 43. Bb5 {[%clk 0:00:23]}  Bd3 {[%clk 0:02:20]} 44. Bc6 {[%clk 0:00:23]}  Ke5 {[%clk 0:02:19]} 45. Bf3 {[%clk 0:00:22]}  Kf5 {[%clk 0:02:19]} 46. Bd1 {[%clk 0:00:21]}  Kg5 {[%clk 0:02:19]} 47. Bf3 {[%clk 0:00:14]}  Kh4 {[%clk 0:02:19]} 48. Bd5 {[%clk 0:00:08]}  Kh3 {[%clk 0:02:18]} 49. Kd1 {[%clk 0:00:09]}  Kh2 {[%clk 0:02:17]} 50. Ke1 {[%clk 0:00:09]}  Kg1 {[%clk 0:02:18]} 51. f3 {[%clk 0:00:05]}  Kg2 {[%clk 0:02:17]} 52. Bc6 {[%clk 0:00:05]}  Kg3 {[%clk 0:02:16]} 53. Bd5 {[%clk 0:00:06]}  Bg6 {[%clk 0:02:16]} 54. Bc6 {[%clk 0:00:05]}  Bh5 {[%clk 0:02:16]} 55. Ke2 {[%clk 0:00:05]}  Bxf3+ {[%clk 0:02:14]} 56. Bxf3 {[%clk 0:00:05]}  c2 {[%clk 0:02:15]} 57. Kd2 {[%clk 0:00:05]}  Kxf3 {[%clk 0:02:15]} 58. Kxc2 {[%clk 0:00:06]}  Ke2 {[%clk 0:02:15]} 0-1


[Site "https://www.chess.com"]

[Event "Titled Tuesday Blitz March 07 Late 2023"]
[White "Dominguez Perez, Leinier"]
[Black "Gireman, Ja"]
[WhiteFideId "3503240"]
[BlackFideId "5043794"]
[WhiteElo "2647"]
[BlackElo "2153"]
[Result "1-0"]
[Round "03"]
[TimeControl "180+2"]
[Date "2023.03.07"]
[WhiteClock "0:01:50"]
[BlackClock "0:00:11"]

1. e4 {[%clk 0:03:00]}  e6 {[%clk 0:02:58]} 2. d4 {[%clk 0:03:00]}  d5 {[%clk 0:02:58]} 3. e5 {[%clk 0:03:01]}  Be7 {[%clk 0:02:58]} 4. Bd3 {[%clk 0:02:56]}  c5 {[%clk 0:02:58]} 5. c3 {[%clk 0:02:56]}  Nc6 {[%clk 0:02:58]} 6. Nf3 {[%clk 0:02:53]}  Nh6 {[%clk 0:02:56]} 7. Bxh6 {[%clk 0:02:47]}  gxh6 {[%clk 0:02:56]} 8. O-O {[%clk 0:02:48]}  Qb6 {[%clk 0:02:49]} 9. Qd2 {[%clk 0:02:47]}  c4 {[%clk 0:02:43]} 10. Be2 {[%clk 0:02:44]}  Bd7 {[%clk 0:02:42]} 11. Qc2 {[%clk 0:02:37]}  f6 {[%clk 0:02:38]} 12. exf6 {[%clk 0:02:33]}  Bxf6 {[%clk 0:02:38]} 13. Nbd2 {[%clk 0:02:34]}  O-O {[%clk 0:02:24]} 14. b3 {[%clk 0:02:29]}  cxb3 {[%clk 0:02:22]} 15. Nxb3 {[%clk 0:02:29]}  Be8 {[%clk 0:02:18]} 16. Nc5 {[%clk 0:02:26]}  Bg6 {[%clk 0:02:11]} 17. Bd3 {[%clk 0:02:19]}  Ne7 {[%clk 0:00:57]} 18. Rab1 {[%clk 0:02:12]}  Qd6 {[%clk 0:00:51]} 19. Rxb7 {[%clk 0:02:10]}  Rf7 {[%clk 0:00:38]} 20. Re1 {[%clk 0:02:07]}  Bh5 {[%clk 0:00:26]} 21. Ne5 {[%clk 0:01:56]}  Bxe5 {[%clk 0:00:20]} 22. Rxe5 {[%clk 0:01:57]}  Raf8 {[%clk 0:00:21]} 23. Rxe6 {[%clk 0:01:50]}  Qd8 {[%clk 0:00:11]} 1-0


[Site "https://www.chess.com"]

[Event "Titled Tuesday Blitz March 07 Late 2023"]
[White "Estrada Nieto, Julian"]
[Black "Li, Ruifeng"]
[WhiteFideId "5101018"]
[BlackFideId "2061074"]
[WhiteElo "2176"]
[BlackElo "2441"]
[Result "0-1"]
[Round "03"]
[TimeControl "180+2"]
[Date "2023.03.07"]
[WhiteClock "0:00:24"]
[BlackClock "0:00:51"]

1. e4 {[%clk 0:02:59]}  b6 {[%clk 0:03:00]} 2. d4 {[%clk 0:02:53]}  Bb7 {[%clk 0:03:00]} 3. Nc3 {[%clk 0:02:53]}  e6 {[%clk 0:03:00]} 4. Nf3 {[%clk 0:02:51]}  d6 {[%clk 0:03:00]} 5. Bd3 {[%clk 0:02:49]}  Nd7 {[%clk 0:03:00]} 6. O-O {[%clk 0:02:48]}  Be7 {[%clk 0:03:00]} 7. Qe2 {[%clk 0:02:48]}  a6 {[%clk 0:03:00]} 8. a4 {[%clk 0:02:48]}  g5 {[%clk 0:02:59]} 9. d5 {[%clk 0:02:29]}  e5 {[%clk 0:02:34]} 10. Nd2 {[%clk 0:02:22]}  h5 {[%clk 0:02:32]} 11. Nc4 {[%clk 0:02:19]}  g4 {[%clk 0:02:32]} 12. f3 {[%clk 0:02:12]}  Nh6 {[%clk 0:02:22]} 13. Ne3 {[%clk 0:02:05]}  Bg5 {[%clk 0:02:16]} 14. Nf5 {[%clk 0:01:44]}  Bxc1 {[%clk 0:02:10]} 15. Raxc1 {[%clk 0:01:44]}  Nxf5 {[%clk 0:02:09]} 16. exf5 {[%clk 0:01:44]}  gxf3 {[%clk 0:01:44]} 17. Qxf3 {[%clk 0:01:40]}  Nf6 {[%clk 0:01:39]} 18. Ne4 {[%clk 0:01:37]}  Nxe4 {[%clk 0:01:39]} 19. Bxe4 {[%clk 0:01:32]}  Qf6 {[%clk 0:01:39]} 20. a5 {[%clk 0:01:27]}  bxa5 {[%clk 0:01:30]} 21. Qb3 {[%clk 0:01:15]}  Bc8 {[%clk 0:01:26]} 22. Qa4+ {[%clk 0:01:12]}  Bd7 {[%clk 0:01:23]} 23. Qxa5 {[%clk 0:01:10]}  Ke7 {[%clk 0:01:22]} 24. c4 {[%clk 0:01:03]}  Rhg8 {[%clk 0:01:10]} 25. c5 {[%clk 0:00:59]}  Rg4 {[%clk 0:01:09]} 26. Bf3 {[%clk 0:00:41]}  Ra4 {[%clk 0:01:04]} 27. Qxc7 {[%clk 0:00:41]}  Rc8 {[%clk 0:01:05]} 28. cxd6+ {[%clk 0:00:39]}  Qxd6 {[%clk 0:01:05]} 29. f6+ {[%clk 0:00:37]}  Qxf6 {[%clk 0:01:01]} 30. Qxd7+ {[%clk 0:00:31]}  Kxd7 {[%clk 0:00:59]} 31. Bg4+ {[%clk 0:00:30]}  Rxg4 {[%clk 0:00:55]} 32. Rxc8 {[%clk 0:00:29]}  Qb6+ {[%clk 0:00:52]} 33. Kh1 {[%clk 0:00:27]}  Kxc8 {[%clk 0:00:52]} 34. h3 {[%clk 0:00:25]}  Rf4 {[%clk 0:00:51]} 35. Rc1+ {[%clk 0:00:24]}  Kd7 {[%clk 0:00:51]} 0-1


[Site "https://www.chess.com"]